bitfinex/quotes_SOLUSD_20260305
["timestamp","ask_amount","ask_price","bid_price","bid_amount"]
[1772686216168,0.87979505,90.503,90.474,0.87173416]
[1772686218681,0.78837201,90.501,90.458,0.73988684]
[1772686218864,0.78837201,90.499,90.458,0.73988684]
[1772686221285,0.78837201,90.489,90.451,4.91096206]
[1772686221667,0.78837201,90.479,90.451,4.91096206]
[1772686222080,0.78837201,90.479,90.435,27.64407515]
[1772686222081,0.78837201,90.459,90.422,0.73988684]
[1772686222591,0.78837201,90.449,90.414,0.73988684]
[1772686223168,0.78837201,90.447,90.414,11.80005179]
[1772686223993,0.78837201,90.447,90.414,0.73988684]
[1772686224289,0.78837201,90.447,90.41,11.06067425]
[1772686226175,0.78837201,90.445,90.413,11.80013319]
[1772686227291,0.76960604,90.457,90.428,0.75839344]
[1772686228789,11.05497639,90.457,90.428,0.75839344]
[1772686229096,11.05391282,90.466,90.429,0.75839344]
[1772686229276,0.76960604,90.467,90.429,0.75839344]
[1772686229885,11.05317192,90.472,90.429,0.75839344]
[1772686230096,0.76960604,90.509,90.429,0.75839344]
[1772686230681,0.76960604,90.499,90.429,0.75839344]
[1772686230992,93.90190012,90.52,90.431,0.75839344]
[1772686230993,0.76960604,90.489,90.431,0.75839344]
[1772686234719,0.76960604,90.487,90.432,38.70311393]
[1772686234893,0.76960604,90.487,90.433,0.75839344]
[1772686236895,0.76960604,90.485,90.435,0.75839344]
[1772686240410,0.76960604,90.479,90.437,0.75839344]
[1772686242003,0.76960604,90.477,90.439,0.75839344]
[1772686244202,0.76960604,90.477,90.441,0.75839344]
[1772686244503,11.05241053,90.478,90.441,0.75839344]
[1772686245906,0.76960604,90.482,90.443,0.75839344]
[1772686250212,38.68215425,90.481,90.444,11.05656538]
[1772686250389,0.65427104,90.479,90.445,0.68765046]
[1772686251783,0.65427104,90.477,90.447,0.68765046]
[1772686252814,0.65427104,90.477,90.407,3.69383402]
[1772686252815,0.65427104,90.477,90.422,0.68765046]
[1772686252989,0.65427104,90.469,90.422,0.68765046]
[1772686253892,0.65427104,90.467,90.423,0.68765046]
[1772686257401,0.65427104,90.465,90.425,0.68765046]
[1772686260393,0.65427104,90.439,90.4,0.88765046]
[1772686260599,0.65427104,90.429,90.402,0.68765046]
[1772686261399,4.22167338,90.42,90.4,0.2]
[1772686261593,0.65427104,90.419,90.4,0.2]
[1772686262507,0.65427104,90.417,90.4,0.2]
[1772686262824,0.65427104,90.434,90.401,0.68765046]
[1772686263325,0.65427104,90.433,90.401,0.68765046]
[1772686263505,0.65427104,90.433,90.4,0.2]
[1772686263506,0.65427104,90.429,90.4,0.2]
[1772686264429,0.65427104,90.427,90.4,0.2]
[1772686264757,0.65427104,90.427,90.401,11.06182453]
[1772686264918,0.65427104,90.427,90.402,0.68765046]
[1772686266510,0.65427104,90.425,90.402,0.68765046]
[1772686267799,0.65427104,90.425,90.4,0.2]
[1772686268616,11.05901088,90.424,90.4,0.2]
[1772686268820,0.65427104,90.423,90.4,0.2]
[1772686271730,0.65427104,90.433,90.402,0.68765046]
[1772686272721,0.65427104,90.433,90.4,0.2]
[1772686273026,0.65427104,90.429,90.4,0.2]
[1772686273722,0.65427104,90.427,90.4,0.2]
[1772686274932,0.65427104,90.425,90.4,0.2]
[1772686276205,0.65427104,90.423,90.4,0.88765046]
[1772686276422,0.65427104,90.423,90.401,0.68765046]
[1772686276629,0.65427104,90.423,90.4,0.2]
[1772686278430,0.65427104,90.421,90.4,0.2]
[1772686279831,38.70739421,90.422,90.344,0.65316397]
[1772686279832,8.44334676,90.41,90.344,0.65316397]
[1772686280033,4.81637092,90.37,90.324,27.67809682]
[1772686280331,0.59469754,90.367,90.331,11.07039665]
[1772686280534,0.59469754,90.367,90.327,11.07088352]
[1772686280740,11.06586402,90.368,90.31,0.2]
[1772686280741,0.59469754,90.359,90.31,0.2]
[1772686280913,0.59469754,90.359,90.323,11.07136571]
[1772686282128,0.59469754,90.359,90.328,0.61142279]
[1772686282428,0.59469754,90.357,90.328,0.61142279]
[1772686283107,0.59469754,90.357,90.331,0.61142279]
[1772686284105,0.59469754,90.357,90.331,11.68181944]
[1772686284311,0.59469754,90.357,90.332,0.61142279]
[1772686285420,0.59469754,90.355,90.332,0.61142279]
[1772686287434,11.06635385,90.364,90.333,0.62415015]
[1772686288516,0.64128559,90.363,90.333,0.62415015]
[1772686289219,11.06635385,90.364,90.333,0.62415015]
[1772686289415,11.06574157,90.369,90.335,0.62415015]
[1772686290033,11.06524216,90.374,90.335,0.62415015]
[1772686290540,11.06464945,90.378,90.335,0.62415015]
[1772686290734,11.06231401,90.397,90.335,0.62415015]
[1772686291733,27.65261707,90.408,90.337,0.62415015]
[1772686292140,11.06072337,90.41,90.339,3.69383402]
[1772686292320,11.06072337,90.41,90.34,0.62415015]
[1772686293535,11.06072337,90.41,90.345,0.62415015]
[1772686293748,11.70200896,90.41,90.345,0.62415015]
[1772686294425,0.64128559,90.389,90.345,0.62415015]
[1772686295521,0.64128559,90.387,90.347,0.62415015]
[1772686297934,0.64128559,90.385,90.349,0.62415015]
[1772686298137,11.0636603,90.386,90.349,0.62415015]
[1772686299244,27.65549619,90.398,90.349,0.62415015]
[1772686299450,0.64128559,90.396,90.349,0.62415015]
[1772686299918,11.06231401,90.397,90.351,0.62415015]
[1772686300538,11.06072337,90.41,90.351,0.62415015]
[1772686302227,11.06072337,90.41,90.353,0.62415015]
[1772686302743,0.64128559,90.399,90.353,0.62415015]
[1772686303256,0.64128559,90.389,90.353,0.62415015]
[1772686304947,0.64128559,90.387,90.355,0.62415015]
[1772686305241,0.64128559,90.387,90.351,3.79148108]
[1772686305443,0.64128559,90.387,90.351,4.41563123]
[1772686305622,0.64128559,90.387,90.352,0.62415015]
[1772686306846,0.64128559,90.385,90.352,0.62415015]
[1772686307344,0.64128559,90.385,90.351,3.79148108]
[1772686308044,0.64128559,90.379,90.351,3.79148108]
[1772686309045,0.65305545,90.377,90.351,3.79148108]
[1772686309543,0.65305545,90.369,90.333,11.07014681]
[1772686309935,0.65305545,90.369,90.331,11.07039665]
[1772686310541,0.65305545,90.369,90.31,0.2]
[1772686310741,0.65305545,90.359,90.31,0.2]
[1772686311133,0.65305545,90.357,90.326,11.07090648]
[1772686311453,0.65305545,90.357,90.331,0.63000767]
[1772686313536,11.06733365,90.356,90.331,0.63000767]
[1772686313738,11.7203891,90.356,90.331,0.63000767]
[1772686314655,0.65305545,90.355,90.33,0.2]
[1772686314855,0.65305545,90.355,90.33,0.83000767]
[1772686315151,0.65305545,90.355,90.331,0.63000767]
[1772686315855,11.06757863,90.354,90.331,0.63000767]
[1772686317558,0.65305545,90.354,90.331,0.63000767]
[1772686318858,11.06770112,90.353,90.331,0.63000767]
[1772686319533,0.65305545,90.352,90.331,0.63000767]
[1772686320645,11.06770112,90.353,90.331,0.63000767]
[1772686320938,11.06770112,90.353,90.332,0.63000767]
[1772686321148,0.65305545,90.352,90.332,0.63000767]
[1772686321858,0.65305545,90.362,90.332,0.63000767]
[1772686322263,0.65305545,90.362,90.334,0.63000767]
[1772686323560,0.65305545,90.36,90.334,0.63000767]
[1772686324809,0.65305545,90.36,90.33,0.2]
[1772686324949,0.65305545,90.36,90.332,0.63000767]
[1772686325148,11.06672126,90.361,90.332,0.63000767]
[1772686326363,11.06623139,90.365,90.332,0.63000767]
[1772686326561,0.65305545,90.364,90.332,0.63000767]
[1772686328146,0.65305545,90.364,90.333,11.07015155]
[1772686328352,0.65305545,90.364,90.334,0.63000767]
[1772686328865,0.65305545,90.362,90.334,0.63000767]
[1772686330152,0.65305545,90.36,90.334,0.63000767]
[1772686331258,0.65305545,90.36,90.336,0.63000767]
[1772686332764,0.65305545,90.358,90.336,0.63000767]
[1772686335965,11.06721117,90.357,90.336,0.63000767]
[1772686336683,0.65305545,90.356,90.336,0.63000767]
[1772686338765,0.66096557,90.354,90.336,0.63000767]
[1772686340057,0.66096557,90.354,90.33,0.2]
[1772686340575,0.66096557,90.354,90.331,11.07039665]
[1772686340961,11.06770112,90.353,90.331,11.07039665]
[1772686341354,0.66096557,90.352,90.33,0.2]
[1772686342053,0.66096557,90.352,90.331,0.61714206]
[1772686343670,11.06794612,90.351,90.331,0.61714206]
[1772686344073,0.66096557,90.35,90.331,0.61714206]
[1772686345174,0.66096557,90.35,90.322,0.61714206]
[1772686345377,0.66096557,90.35,90.315,0.74836959]
[1772686345378,0.66096557,90.35,90.316,0.61714206]
[1772686345770,0.66096557,90.348,90.316,0.61714206]
[1772686347675,0.67376348,90.346,90.3,0.2]
[1772686347873,0.67376348,90.339,90.302,0.6749217]
[1772686348177,4.23149762,90.34,90.302,0.6749217]
[1772686348178,0.67376348,90.346,90.302,0.6749217]
[1772686350467,0.67376348,90.344,90.304,0.6749217]
[1772686353083,0.67376348,90.342,90.306,0.6749217]
[1772686356385,0.67376348,90.34,90.308,0.6749217]
[1772686359886,0.67376348,90.338,90.308,0.6749217]
[1772686362096,0.67376348,90.336,90.309,11.07309349]
[1772686363298,4.23149762,90.35,90.31,0.6749217]
[1772686363299,11.06819112,90.349,90.31,0.6749217]
[1772686363595,27.67292812,90.341,90.31,0.6749217]
[1772686364169,27.67292812,90.341,90.311,11.07284826]
[1772686364377,27.67292812,90.341,90.312,0.6749217]
[1772686365194,0.67376348,90.34,90.312,0.6749217]
[1772686366887,38.73866893,90.349,90.312,0.6749217]
[1772686366888,0.67376348,90.338,90.312,0.6749217]
[1772686368482,11.06966137,90.337,90.312,0.6749217]
[1772686368681,0.68056595,90.336,90.312,0.6749217]
[1772686369400,0.68056595,90.336,90.314,0.66895872]
[1772686370590,0.68056595,90.342,90.314,0.66895872]
[1772686370793,38.73438174,90.359,90.316,0.66895872]
[1772686370794,0.68056595,90.358,90.316,0.66895872]
[1772686371013,0.68056595,90.389,90.316,0.66895872]
[1772686372004,4.23486244,90.38,90.316,0.66895872]
[1772686372216,0.68056595,90.379,90.316,0.66895872]
[1772686374891,4.23486244,90.38,90.318,0.66895872]
[1772686374892,0.68056595,90.377,90.318,0.66895872]
[1772686377599,6.86843435,90.393,90.319,11.07186749]
[1772686377600,0.68056595,90.369,90.319,11.07186749]
[1772686377802,0.68056595,90.359,90.32,0.66895872]
[1772686381495,4.23486244,90.36,90.32,0.66895872]
[1772686381496,0.68056595,90.357,90.32,0.66895872]
[1772686383510,0.68056595,90.355,90.32,0.66895872]
[1772686384010,0.68056595,90.355,90.301,0.66895872]
[1772686384921,0.68056595,90.353,90.302,0.66895872]
[1772686385409,4.23486244,90.35,90.302,0.66895872]
[1772686385615,0.68056595,90.349,90.302,0.66895872]
[1772686396221,0.68056595,90.347,90.302,0.66895872]
[1772686398320,0.68056595,90.345,90.304,0.66895872]
[1772686402321,0.74111007,90.343,90.304,0.66895872]
[1772686402723,0.74111007,90.343,90.3,0.2]
[1772686402724,0.74111007,90.329,90.3,0.2]
[1772686402916,0.74111007,90.329,90.301,0.72390246]
[1772686403828,4.23486244,90.34,90.301,0.72390246]
[1772686404728,38.74295707,90.339,90.301,0.72390246]
[1772686405830,0.68441958,90.338,90.301,0.72390246]
[1772686406930,0.68802628,90.336,90.301,0.72390246]
[1772686407314,0.71576557,90.329,90.284,4.02836097]
[1772686408918,38.74767513,90.328,90.284,4.02836097]
[1772686409118,0.71576557,90.327,90.284,4.02836097]
[1772686409329,0.71576557,90.327,90.285,0.69983248]
[1772686410032,38.74767513,90.328,90.262,0.69983248]
[1772686410033,0.71576557,90.299,90.262,0.69983248]
[1772686410336,0.71576557,90.309,90.262,0.69983248]
[1772686411036,0.71576557,90.307,90.264,0.69983248]
[1772686413439,0.71576557,90.299,90.264,0.69983248]
[1772686414519,0.71576557,90.299,90.266,0.69983248]
[1772686415846,0.71576557,90.297,90.266,0.69983248]
[1772686416735,0.71576557,90.297,90.227,3.69383402]
[1772686416736,0.71576557,90.297,90.268,0.69983248]
[1772686416925,11.0744424,90.298,90.268,0.69983248]
[1772686418448,0.71576557,90.301,90.268,0.69983248]
[1772686418644,0.71576557,90.301,90.27,0.69983248]
[1772686420346,55.35823918,90.321,90.23,44.53085667]
[1772686420347,0.71576557,90.315,90.273,0.69983248]
[1772686420544,0.71576557,90.328,90.273,0.69983248]
[1772686421832,0.71576557,90.326,90.275,0.69983248]
[1772686424037,0.71576557,90.319,90.277,0.69983248]
[1772686427064,0.71576557,90.317,90.279,0.69983248]
[1772686428541,0.71576557,90.315,90.281,0.69983248]
[1772686431542,11.07248045,90.314,90.282,11.07640504]
[1772686431736,11.07248045,90.314,90.283,0.72597848]
[1772686433353,11.80153811,90.314,90.283,0.72597848]
[1772686434166,11.07064176,90.329,90.285,0.72597848]
[1772686434542,0.72905766,90.337,90.285,0.72597848]
[1772686435378,11.06953884,90.338,90.286,0.72597848]
[1772686435546,11.06953884,90.338,90.288,0.72597848]
[1772686436059,0.72905766,90.337,90.29,0.72597848]
[1772686440550,0.72905766,90.337,90.292,0.72597848]
[1772686441254,11.79884157,90.336,90.292,0.72597848]
[1772686441456,11.06978391,90.336,90.294,0.72597848]
[1772686443556,11.06978391,90.336,90.296,0.72597848]
[1772686443775,0.72905766,90.335,90.296,0.72597848]
[1772686445875,6.84972884,90.339,90.293,1.9]
[1772686445876,0.72905766,90.333,90.298,0.72597848]
[1772686447358,0.72905766,90.338,90.298,0.72597848]
[1772686447562,5.1549254,90.339,90.299,1.9]
[1772686448075,5.1549254,90.339,90.3,38.75968992]
[1772686449349,5.1549254,90.339,90.3,94.13067552]
[1772686450163,0.8024131,90.349,90.301,1.10740744]
[1772686452174,0.8024131,90.349,90.3,38.75968992]
[1772686452566,0.8024131,90.349,90.301,1.9]
[1772686453360,11.06831363,90.348,90.301,1.9]
[1772686453556,0.8024131,90.347,90.301,1.9]
[1772686454771,0.8024131,90.347,90.302,38.75883147]
[1772686454982,0.8024131,90.345,90.302,38.75883147]
[1772686455195,0.8024131,90.345,90.303,1.9]
[1772686457691,0.8024131,90.343,90.304,38.75797306]
[1772686458579,0.8024131,90.343,90.305,1.9]
[1772686459782,0.8024131,90.341,90.264,55.39306921]
[1772686459980,0.8024131,90.341,90.271,30.0]
[1772686460287,0.8024131,90.341,90.274,3.69383402]
[1772686460784,0.8024131,90.341,90.269,4.82477569]
[1772686462376,0.8024131,90.339,90.273,3.69383402]
[1772686464670,0.8024131,90.337,90.274,94.15778628]
[1772686467591,0.8024131,90.335,90.277,3.69383402]
[1772686470675,0.8024131,90.333,90.282,3.69383402]
[1772686473103,0.8024131,90.331,90.283,29.59070589]
[1772686473397,0.8024131,90.331,90.284,1.9]
[1772686475407,38.74595933,90.332,90.285,38.76612947]
[1772686475408,0.8024131,90.329,90.285,38.76612947]
[1772686476805,0.8024131,90.329,90.286,1.9]
[1772686477102,0.8024131,90.329,90.285,38.76612947]
[1772686477103,0.8024131,90.329,90.285,11.07603699]
[1772686481385,0.8024131,90.327,90.276,27.69269648]
[1772686484990,0.8024131,90.325,90.264,3.69383402]
[1772686488084,0.8024131,90.325,90.26,0.2]
[1772686488085,0.8024131,90.323,90.265,38.77471887]
[1772686488698,0.8024131,90.323,90.265,40.67471887]
[1772686489410,0.8024131,90.323,90.266,1.9]
[1772686490608,0.8024131,90.323,90.267,94.165088]
[1772686491811,11.07149974,90.322,90.267,94.165088]
[1772686491992,0.8024131,90.321,90.267,94.165088]
[1772686492701,0.8024131,90.319,90.267,38.77385976]
[1772686494706,0.8024131,90.319,90.268,1.9]
[1772686495298,0.8024131,90.319,90.269,38.77300068]
[1772686497821,0.8024131,90.319,90.27,1.9]
[1772686500100,0.8024131,90.319,90.271,38.77214166]
[1772686500725,11.07199007,90.318,90.272,1.9]
[1772686500921,0.8024131,90.317,90.273,1.9]
[1772686501121,0.8024131,90.317,90.274,1.9]
[1772686506606,0.8024131,90.315,90.275,40.67042369]
[1772686509711,0.8024131,90.315,90.276,1.9]
[1772686511033,0.8024131,90.314,90.277,38.76956477]
[1772686512729,0.8024131,90.312,90.277,38.76956477]
[1772686515635,0.8024131,90.312,90.268,40.67343022]
[1772686516841,0.8024131,90.373,90.272,3.69383402]
[1772686517132,0.8024131,90.366,90.273,1.9]
[1772686517438,0.8024131,90.366,90.274,1.10773866]
[1772686517739,0.8024131,90.364,90.278,3.69383402]
[1772686517925,0.8024131,90.364,90.279,1.10767731]
[1772686519037,0.8024131,90.362,90.283,3.69383402]
[1772686519216,0.8024131,90.359,90.284,1.10761596]
[1772686519417,0.8024131,90.359,90.283,3.69383402]
[1772686520243,0.8024131,90.349,90.283,3.69383402]
[1772686520430,0.8024131,90.349,90.28,38.76827647]
[1772686521032,0.8024131,90.349,90.261,3.0078982]
[1772686521033,0.8024131,90.347,90.27,3.69383402]
[1772686521334,0.8024131,90.347,90.271,1.10777547]
[1772686523216,0.8024131,90.345,90.275,3.69383402]
[1772686523420,0.8024131,90.345,90.276,1.10771412]
[1772686524842,0.8024131,90.345,90.28,3.69383402]
[1772686525043,0.8024131,90.345,90.285,4.82477569]
[1772686525248,0.8024131,90.345,90.29,4.82477569]
[1772686525446,0.8024131,90.345,90.293,3.69383402]
[1772686525743,0.8024131,90.345,90.294,4.90082232]
[1772686525942,0.8024131,90.345,90.295,3.79328702]
[1772686526438,0.8024131,90.345,90.299,3.69383402]
[1772686526642,0.8024131,90.345,90.3,3.79307698]
[1772686528730,0.8024131,90.344,90.301,38.75926069]
[1772686528934,0.8024131,90.344,90.301,11.07407448]
[1772686530236,0.8024131,90.344,90.3,3.79307698]
[1772686530237,0.8024131,90.342,90.3,3.79307698]
[1772686530830,0.65452161,90.339,90.292,11.07513996]
[1772686531035,0.65452161,90.339,90.282,11.07640504]
[1772686531544,0.65452161,90.339,90.282,11.74293699]
[1772686531945,0.65452161,90.339,90.283,0.66653195]
[1772686533252,0.65452161,90.337,90.284,11.74269162]
[1772686533553,0.65452161,90.337,90.285,0.66653195]
[1772686534249,0.65452161,90.337,90.27,0.66653195]
[1772686536154,0.65452161,90.329,90.272,0.66653195]
[1772686536650,94.09316328,90.336,90.271,11.07775476]
[1772686536651,0.65452161,90.319,90.271,11.07775476]
[1772686537234,4.23524061,90.31,90.266,11.07825934]
[1772686537437,4.23524061,90.28,90.239,0.70707024]
[1772686537633,4.23524061,90.28,90.241,0.70707024]
[1772686538851,38.76870589,90.279,90.241,0.70707024]
[1772686539254,38.76870589,90.279,90.235,0.70707024]
[1772686541153,38.76870589,90.279,90.241,0.70707024]
[1772686545238,38.76870589,90.279,90.236,0.70707024]
[1772686545457,38.76870589,90.279,90.241,0.70707024]
[1772686547849,38.76441205,90.289,90.243,0.70707024]
[1772686550465,38.76441205,90.289,90.245,0.70707024]
[1772686551755,3.69383402,90.295,90.247,0.70707024]
[1772686551938,4.24113403,90.29,90.247,0.70707024]
[1772686552144,44.2978068,90.298,90.247,0.70707024]
[1772686552959,4.24113403,90.3,90.247,0.70707024]
[1772686553656,38.75754387,90.305,90.247,0.70707024]
[1772686555457,4.24113403,90.3,90.249,0.70707024]
[1772686557448,11.07431975,90.299,90.251,0.70707024]
[1772686559762,11.07260305,90.313,90.252,38.78030402]
[1772686559966,38.75411069,90.313,90.253,0.70707024]
[1772686562669,38.75411069,90.313,90.255,0.70707024]
[1772686563658,38.75411069,90.313,90.256,0.70707024]
[1772686564355,38.75411069,90.313,90.257,1.9]
[1772686564669,38.75411069,90.313,90.26,0.70707024]
[1772686564869,11.07260305,90.313,90.26,0.70707024]
[1772686566663,11.07260305,90.313,90.262,0.70707024]
[1772686567375,38.75411069,90.313,90.262,0.70707024]
[1772686568754,38.75411069,90.313,90.264,0.70707024]
[1772686570376,4.24113403,90.31,90.264,0.70707024]
[1772686570965,38.75582721,90.309,90.264,0.70707024]
[1772686571874,38.75582721,90.309,90.266,0.70707024]
[1772686575672,38.75582721,90.309,90.268,0.70707024]
[1772686578766,38.75582721,90.309,90.267,38.77385976]
[1772686578767,27.68273372,90.309,90.27,0.70707024]
[1772686581877,38.75153621,90.319,90.272,0.70707024]
[1772686583676,4.24113403,90.32,90.274,0.70707024]
[1772686585267,44.28231936,90.33,90.274,0.70707024]
[1772686585268,48.52345339,90.33,90.274,0.70707024]
[1772686585663,38.7442437,90.336,90.276,0.70707024]
[1772686586991,38.7442437,90.336,90.278,0.70707024]
[1772686588380,4.24113403,90.33,90.278,0.70707024]
[1772686588578,4.24113403,90.32,90.278,0.70707024]
[1772686589083,6.99427349,90.349,90.28,0.70707024]
[1772686589084,4.24113403,90.34,90.28,0.70707024]
[1772686589263,4.24113403,90.33,90.28,0.70707024]
[1772686589883,4.24113403,90.34,90.28,0.70707024]
[1772686591189,38.74295707,90.339,90.282,0.70707024]
[1772686591769,4.24113403,90.33,90.282,0.70707024]
[1772686593188,38.74724617,90.329,90.284,0.70707024]
[1772686596795,38.74295707,90.339,90.286,0.70707024]
[1772686599683,38.74295707,90.339,90.288,0.70707024]
[1772686602702,38.74295707,90.339,90.29,0.70707024]
[1772686605905,38.74295707,90.339,90.292,0.70707024]
[1772686608806,38.74295707,90.339,90.294,0.70707024]
[1772686609590,4.82477569,90.368,90.293,11.07505565]
[1772686609788,4.34113403,90.45,90.353,3.69383402]
[1772686610040,0.1,90.45,90.401,5.0]
[1772686610215,0.1,90.45,90.405,0.65845708]
[1772686610713,0.1,90.45,90.407,0.65845708]
[1772686611713,4.24113403,90.44,90.407,0.65845708]
[1772686611889,0.1,90.45,90.406,11.06121275]
[1772686612094,4.24113403,90.42,90.401,2.84629587]
[1772686612288,4.24113403,90.42,90.391,11.06300225]
[1772686612508,4.22936945,90.42,90.385,0.65845708]
[1772686612719,4.22936945,90.42,90.386,11.0636603]
[1772686612903,4.22936945,90.42,90.387,0.65845708]
[1772686613398,4.32936945,90.45,90.387,0.65845708]
[1772686613711,4.22936945,90.44,90.387,0.65845708]
[1772686613900,4.22936945,90.43,90.387,0.65845708]
[1772686614101,4.22936945,90.42,90.387,0.65845708]
[1772686614687,4.22936945,90.43,90.387,0.65845708]
[1772686615018,4.22936945,90.43,90.361,44.26653327]
[1772686615019,11.05595418,90.449,90.389,0.65845708]
[1772686615197,4.22936945,90.44,90.389,0.65845708]
[1772686617000,4.22936945,90.44,90.391,0.65845708]
[1772686617793,11.05667669,90.444,90.391,0.65845708]
[1772686617993,4.22936945,90.44,90.391,0.65845708]
[1772686618310,0.02345252,90.439,90.391,0.65845708]
[1772686619005,11.05717666,90.439,90.392,11.06292592]
[1772686619203,11.05717666,90.439,90.391,0.65845708]
[1772686619204,0.03007287,90.429,90.389,11.06325737]
[1772686619399,0.03007287,90.429,90.39,0.65845708]
[1772686620197,0.03661718,90.438,90.39,0.65845708]
[1772686620392,0.1,90.45,90.39,0.65845708]
[1772686620619,2.47215037,106.65,90.473,3.69383402]
[1772686620620,11.28322948,90.6,90.473,3.69383402]
[1772686620799,0.13661718,90.588,90.475,3.69383402]
[1772686620995,0.13661718,90.588,90.47,5.77041541]
[1772686620996,0.13661718,90.558,90.48,4.82477569]
[1772686621313,0.13661718,90.558,90.498,0.64491133]
[1772686621616,0.14276367,90.558,90.498,0.64491133]
[1772686621799,0.14276367,90.55,90.498,0.64491133]
[1772686622001,4.22936945,90.56,90.498,0.64491133]
[1772686622616,0.14916222,90.559,90.498,0.64491133]
[1772686622808,9.03536683,90.56,90.498,0.64491133]
[1772686623115,38.63603748,90.589,90.504,0.64491133]
[1772686623116,11.04008655,90.579,90.504,0.64491133]
[1772686623291,0.15548726,90.569,90.507,0.64491133]
[1772686623493,9.03536683,90.56,90.507,0.64491133]
[1772686623695,9.19085409,90.56,90.507,0.64491133]
[1772686623903,9.19085409,90.55,90.507,0.64491133]
[1772686624292,0.16173966,90.559,90.507,0.64491133]
[1772686624490,9.19710649,90.55,90.507,0.64491133]
[1772686624714,9.03536683,90.55,90.507,0.64491133]
[1772686624915,9.03536683,90.52,90.472,11.05314351]
[1772686625095,11.04740441,90.519,90.476,3.69383402]
[1772686625407,11.04651802,90.527,90.477,11.05253268]
[1772686625994,9.6546229,90.54,90.477,11.05253268]
[1772686626200,0.61925607,90.539,90.477,38.68386439]
[1772686626400,0.61925607,90.538,90.477,38.68386439]
[1772686626915,0.61925607,90.559,90.481,0.64491133]
[1772686627117,11.04316909,90.554,90.481,0.64491133]
[1772686627327,11.04316909,90.554,90.486,0.64491133]
[1772686627533,9.03536683,90.55,90.486,0.64491133]
[1772686628318,11.04316909,90.554,90.486,0.64491133]
[1772686628523,9.03536683,90.55,90.486,0.64491133]
[1772686628739,0.61925607,90.553,90.486,0.64491133]
[1772686630630,0.61925607,90.549,90.492,0.64491133]
[1772686630826,0.61925607,90.539,90.492,0.64491133]
[1772686631007,0.61925607,90.529,90.492,0.64491133]
[1772686632721,11.04630611,90.528,90.492,0.61090039]
[1772686632910,11.66556218,90.528,90.492,0.61090039]
[1772686633309,0.61925607,90.519,90.471,4.12394232]
[1772686633816,0.61925607,90.519,90.472,11.05314351]
[1772686634728,0.61925607,90.517,90.473,0.64491133]
[1772686635036,0.61925607,90.517,90.475,0.64491133]
[1772686635922,11.04752645,90.518,90.475,0.64491133]
[1772686635923,0.61925607,90.509,90.475,0.64491133]
[1772686637130,0.61925607,90.507,90.475,0.64491133]
[1772686639406,44.18368587,90.532,90.471,4.12394232]
[1772686639407,0.72872745,90.505,90.472,0.68669013]
[1772686640939,11.04923539,90.504,90.472,0.68669013]
[1772686642016,11.04923539,90.504,90.473,0.68669013]
[1772686643829,11.0476485,90.517,90.475,0.68669013]
[1772686644837,11.0476485,90.517,90.471,4.12394232]
[1772686644838,0.72872745,90.499,90.471,3.90239509]
[1772686645035,0.72872745,90.489,90.471,1.08359073]
[1772686646112,0.72872745,90.487,90.471,1.08359073]
[1772686646335,0.72872745,90.487,90.471,1e-08]
[1772686648138,11.05143337,90.486,90.471,1e-08]
[1772686650044,44.19022969,90.518,90.471,1e-08]
[1772686650045,11.05028633,90.496,90.472,0.70485513]
[1772686650236,11.04874707,90.508,90.472,0.70485513]
[1772686650829,11.04874707,90.508,90.474,0.70485513]
[1772686651534,0.72148063,90.507,90.474,0.70485513]
[1772686652448,0.72148063,90.499,90.471,1e-08]
[1772686655933,0.72148063,90.479,90.471,1e-08]
[1772686658147,0.72148063,90.477,90.471,1e-08]
[1772686660151,0.72148063,90.475,90.471,1e-08]
[1772686662265,0.72148063,90.473,90.471,1e-08]
[1772686663259,0.72148063,90.473,90.431,0.70485513]
[1772686663561,0.72148063,90.469,90.431,0.70485513]
[1772686665154,0.72148063,90.467,90.431,0.70485513]
[1772686665456,0.72148063,90.487,90.434,3.69383402]
[1772686665754,38.67958932,90.487,90.435,0.70485513]
[1772686665958,0.72148063,90.486,90.435,0.70485513]
[1772686666860,0.72148063,90.484,90.437,0.70485513]
[1772686667565,0.72148063,90.469,90.425,0.70485513]
[1772686668262,0.72148063,90.469,90.426,0.70485513]
[1772686669045,0.80230582,90.467,90.426,0.70485513]
[1772686671166,38.68856807,90.466,90.426,0.70485513]
[1772686671356,0.80230582,90.465,90.426,0.70485513]
[1772686672548,0.80230582,90.463,90.426,0.70485513]
[1772686674559,0.80230582,90.461,90.426,0.70485513]
[1772686675352,0.80230582,90.461,90.427,0.80206826]
[1772686677971,0.80230582,90.459,90.427,0.80206826]
[1772686679875,0.80230582,90.457,90.427,0.80206826]
[1772686681952,11.05509861,90.456,90.427,0.80206826]
[1772686682153,0.80230582,90.455,90.427,0.80206826]
[1772686684061,11.05534304,90.454,90.427,0.80206826]
[1772686684375,0.80230582,90.453,90.427,0.80206826]
[1772686686879,11.05558749,90.452,90.427,0.80206826]
[1772686687777,0.80230582,90.452,90.427,0.80206826]
[1772686687953,0.80230582,90.452,90.424,14.88045873]